bitfinex-derivatives/quotes_ETHF0:USTF0_20251117
["timestamp","ask_amount","ask_price","bid_price","bid_amount"]
[1763361785567,0.73653,3183.2,3183.1,3.48405517]
[1763361786167,0.7365,3183.4,3183.3,0.233]
[1763361786667,0.7365,3183.4,3183.3,0.27625517]
[1763361787166,0.7365,3183.4,3183.3,0.04325517]
[1763361788872,0.7365,3183.4,3183.3,0.27625517]
[1763361789372,0.2272,3183.4,3183.3,0.27625517]
[1763361789575,3.435,3183.7,3183.6,0.233]
[1763361790569,3.435,3183.7,3183.6,0.27625517]
[1763361791165,3.94426,3183.7,3183.6,0.27625517]
[1763361794368,0.8822,3184.0,3183.9,0.233]
[1763361794567,0.8822,3184.0,3183.9,0.27625517]
[1763361794875,0.373,3184.0,3183.9,0.27625517]
[1763361795765,0.373,3184.0,3183.9,0.31951034]
[1763361796370,0.373,3184.0,3183.9,0.08651034]
[1763361797169,0.373,3184.0,3183.9,0.32841034]
[1763361799068,0.373,3184.0,3183.9,0.08651034]
[1763361805474,3.5808,3184.0,3183.9,0.08651034]
[1763361806178,0.74944,3183.8,3183.7,0.242]
[1763361809386,0.74944,3183.8,3183.6,1.12747348]
[1763361809387,0.2402,3183.7,3183.6,1.36947348]
[1763361809785,0.74946,3183.6,3183.5,1.12747348]
[1763361811487,0.74946,3183.6,3183.3,4.89962931]
[1763361811488,0.2402,3183.4,3183.3,4.33527348]
[1763361811674,0.2402,3183.4,3183.3,3.2078]
[1763361812187,0.50925,3183.7,3183.4,0.242]
[1763361812388,1.52191331,3183.8,3183.7,0.242]
[1763361812988,0.89498,3183.5,3183.4,0.242]
[1763361814283,0.2402,3183.8,3183.7,0.242]
[1763361815788,0.74945,3183.7,3183.6,1.12747348]
[1763361815991,0.74945,3183.7,3183.4,1.69182931]
[1763361815992,0.2402,3183.6,3183.5,1.12747348]
[1763361816590,0.2402,3183.6,3183.5,1.41272865]
[1763361817488,0.2402,3183.6,3183.5,0.28525517]
[1763361822384,0.50925,3183.7,3183.6,0.242]
[1763361823286,0.50922,3183.9,3183.6,0.242]
[1763361823485,4.48201425,3184.5,3183.9,0.242]
[1763361823690,0.5092,3184.0,3183.9,0.242]
[1763361823892,0.8949,3184.0,3183.9,0.242]
[1763361824491,0.8949,3184.0,3183.9,0.28525517]
[1763361824993,1.66738331,3184.0,3183.9,0.04325517]
[1763361825698,0.5092,3184.0,3183.9,0.28525517]
[1763361825997,0.8949,3184.0,3183.9,0.28525517]
[1763361826295,1.66738331,3184.0,3183.9,0.04325517]
[1763361826483,1.66738331,3184.0,3183.9,0.28525517]
[1763361826683,0.8949,3184.0,3183.9,0.28525517]
[1763361826887,0.8949,3184.0,3183.9,0.32851034]
[1763361827087,0.5092,3184.0,3183.9,0.32851034]
[1763361828595,4.71221425,3184.5,3184.4,0.2266]
[1763361828807,0.74901,3184.6,3184.5,0.2266]
[1763361829001,0.376,3184.5,3184.4,0.08651034]
[1763361829391,3.5838,3184.5,3184.4,0.08651034]
[1763361830000,4.71221425,3184.5,3184.4,0.08651034]
[1763361831298,0.2399,3183.9,3183.8,3.2078]
[1763361831491,1.01238331,3183.9,3183.8,3.2078]
[1763361832200,1.52159331,3183.9,3183.8,3.2078]
[1763361833794,0.74911,3183.9,3183.8,3.4344]
[1763361834194,0.1361,3184.0,3183.9,0.2266]
[1763361835894,0.376,3184.0,3183.9,0.2266]
[1763361837298,0.376,3184.0,3183.9,0.26985517]
[1763361838698,0.376,3184.0,3183.9,0.04325517]
[1763361840403,0.376,3184.0,3183.9,0.26985517]
[1763361841406,0.74909,3184.1,3184.0,0.2266]
[1763361842207,0.74909,3184.1,3184.0,0.26985517]
[1763361842710,0.74909,3184.1,3184.0,0.04325517]
[1763361843205,3.4477,3184.3,3184.2,0.2266]
[1763361843410,3.71695,3184.3,3184.2,0.2266]
[1763361843806,0.88513,3184.5,3184.4,0.2266]
[1763361844006,0.0032701,3184.7,3184.6,0.2266]
[1763361844212,0.0032701,3184.7,3184.6,0.26985517]
[1763361844510,1.01565341,3184.7,3184.6,0.04325517]
[1763361844709,0.2431701,3184.7,3184.6,0.26985517]
[1763361844911,0.0032701,3184.7,3184.6,0.26985517]
[1763361845709,0.2431701,3184.7,3184.6,0.26985517]
[1763361847513,0.2431701,3184.7,3184.6,0.31311034]
[1763361848111,1.01565341,3184.7,3184.6,0.31311034]
[1763361848315,1.01565341,3184.7,3184.6,0.08651034]
[1763361852710,0.2431701,3184.7,3184.6,0.08651034]
[1763361854118,0.2431701,3184.7,3184.6,0.31311034]
[1763361856116,0.2431701,3184.7,3184.6,0.08651034]
[1763361857219,0.2431701,3184.7,3184.6,0.31311034]
[1763361857512,0.0032701,3184.7,3184.6,0.31311034]
[1763361857711,0.0032701,3184.7,3184.6,0.2266]
[1763361857908,0.0032701,3184.7,3184.6,0.35636551]
[1763361858116,0.2429701,3184.7,3184.6,0.35636551]
[1763361860119,1.01545341,3184.7,3184.6,0.12976551]
[1763361862822,1.01525788,3184.7,3184.6,0.12976551]
[1763361866434,0.0032701,3184.7,3184.6,0.36716551]
[1763361866622,0.2425701,3184.7,3184.6,0.12976551]
[1763361867328,0.0032701,3184.7,3184.6,0.36716551]
[1763361868036,0.2425701,3184.7,3184.6,0.2374]
[1763361868232,0.2425701,3184.7,3184.6,0.41042068]
[1763361869439,0.0032701,3184.7,3184.6,0.41042068]
[1763361878537,0.0032701,3184.7,3184.6,0.45367585]
[1763361879345,0.0032701,3184.7,3184.6,1.58378668]
[1763361879842,0.0032701,3184.7,3184.6,0.45367585]
[1763361880845,1.12841425,3185.4,3185.3,0.2374]
[1763361881043,0.50897,3185.5,3185.4,0.2374]
[1763361881434,0.2393,3185.7,3185.6,0.2374]
[1763361881637,1.12841425,3186.0,3185.9,0.2374]
[1763361881830,1.87654425,3186.3,3186.2,0.2374]
[1763361882031,1.88450944,3186.3,3186.2,0.2374]
[1763361882343,0.75609519,3186.3,3186.2,0.2374]
[1763361882643,0.75609519,3186.3,3186.2,0.45367585]
[1763361883844,1.52838297,3186.3,3186.2,0.45367585]
[1763361884343,0.51679519,3186.3,3186.2,0.45367585]
[1763361884541,0.75609519,3186.3,3186.2,0.45367585]
[1763361884742,0.51679519,3186.3,3186.2,0.45367585]
[1763361884942,0.75609519,3186.3,3186.2,0.45367585]
[1763361885339,0.51679519,3186.3,3186.2,0.45367585]
[1763361885645,0.75609519,3186.3,3186.2,0.45367585]
[1763361885946,0.51679519,3186.3,3186.2,0.45367585]
[1763361886141,0.75609519,3186.3,3186.2,0.45367585]
[1763361886339,0.00796519,3186.3,3186.2,0.45367585]
[1763361886740,0.24726519,3186.3,3186.2,0.45367585]
[1763361887142,0.00796519,3186.3,3186.2,0.45367585]
[1763361888836,0.00796519,3186.3,3186.2,0.49693102]
[1763361890450,0.24726519,3186.3,3186.2,0.49693102]
[1763361892547,0.24726519,3186.3,3186.2,0.25953102]
[1763361894749,0.25156519,3186.3,3186.2,0.04630155]
[1763361896353,0.76039519,3186.3,3186.2,0.04630155]
[1763361897048,0.88668,3186.0,3185.9,0.00395823]
[1763361897261,4.86676778,3186.0,3185.9,0.00395823]
[1763361898556,4.09448,3186.0,3185.9,0.00395823]
[1763361898855,4.86676778,3186.0,3185.9,0.00395823]
[1763361899051,4.48896778,3186.0,3185.9,0.24584287]
[1763361899260,3.96028,3186.0,3185.9,0.24584287]
[1763361899453,4.09708,3186.0,3185.9,0.01684287]
[1763361900255,4.86936778,3186.0,3185.9,0.01684287]
[1763361900652,0.2436,3185.1,3185.0,0.3662]
[1763361900857,3.3338,3185.5,3185.0,0.3662]
[1763361901052,0.50905,3184.9,3184.5,4.47804226]
[1763361901353,0.75265,3184.9,3184.8,0.229]
[1763361901557,0.50905,3184.9,3184.8,0.229]
[1763361901762,0.50903,3185.1,3185.0,0.3761]
[1763361902055,0.50895,3185.6,3185.5,0.3761]
[1763361902766,0.75252,3185.8,3185.7,0.229]
[1763361903259,3.2078,3185.9,3185.7,0.229]
[1763361903454,3.2078,3185.9,3185.8,0.229]
[1763361903751,0.2436,3185.6,3185.4,3.2078]
[1763361903959,0.2436,3185.5,3185.4,3.4368]
[1763361904348,3.7167,3185.9,3185.5,0.1471]
[1763361904548,3.7167,3185.9,3185.5,0.3761]
[1763361904549,0.2436,3185.6,3185.5,0.3761]
[1763361905060,0.50894,3185.7,3185.6,0.229]
[1763361905256,0.75254,3185.7,3185.6,0.229]
[1763361905450,0.50895,3185.6,3185.4,3.4368]
[1763361905649,0.50895,3185.6,3185.5,0.3761]
[1763361906255,0.50892,3185.8,3185.5,0.3761]
[1763361906452,0.50892,3185.8,3185.7,0.229]
[1763361906655,0.75252,3185.8,3185.7,0.229]
[1763361907362,0.50892,3185.8,3185.7,0.229]
[1763361908461,0.75252,3185.8,3185.7,0.229]
[1763361908658,0.50892,3185.8,3185.7,0.229]
[1763361909450,0.50892,3185.8,3185.7,0.27225517]
[1763361909652,0.75252,3185.8,3185.7,0.27225517]
[1763361910054,0.50892,3185.8,3185.7,0.27225517]
[1763361910851,0.00796519,3186.3,3186.2,0.229]
[1763361911059,0.00796519,3186.3,3186.2,1.00128778]
[1763361911457,0.00796519,3186.3,3186.2,1.04454295]
[1763361911659,0.25156519,3186.3,3186.2,0.27225517]
[1763361911858,0.00796519,3186.3,3186.2,0.27225517]
[1763361912061,0.51679519,3186.3,3186.2,0.27225517]
[1763361912262,0.00796519,3186.3,3186.2,0.27225517]
[1763361912657,0.00796519,3186.3,3186.2,1.04454295]
[1763361915753,0.00796519,3186.3,3186.2,0.27225517]
[1763361917464,0.00796519,3186.3,3186.2,1.04454295]
[1763361917863,0.50871,3187.1,3187.0,0.3616]
[1763361918061,3.4514,3187.2,3187.1,0.2265]
[1763361918367,3.96009,3187.2,3187.1,0.2265]
[1763361918666,3.96009,3187.2,3187.1,0.26975517]
[1763361918859,3.96231698,3187.2,3187.1,0.27271998]
[1763361923378,3.96231698,3187.2,3187.1,0.04621998]
[1763361924376,3.96231698,3187.2,3187.1,0.29301998]
[1763361925062,3.96231698,3187.2,3187.1,0.04621998]
[1763361930778,0.75451698,3187.2,3187.1,0.04621998]
[1763361935983,1.52546427,3187.2,3187.1,0.04621998]
[1763361936186,0.75103,3186.9,3186.8,0.00471291]
[1763361936385,4.72977729,3186.9,3186.8,0.00471291]
[1763361936585,1.52197729,3186.9,3186.8,0.00471291]
[1763361937082,5.43989544,3186.9,3186.8,0.00471291]
[1763361937283,5.43989544,3186.9,3186.8,0.00742408]
[1763361938087,0.75115,3186.2,3186.1,3.4546]
[1763361938394,0.75118,3186.0,3185.9,0.2468]
[1763361938787,1.46154739,3186.0,3185.9,0.2468]
[1763361939095,0.95266739,3186.0,3185.9,0.24983341]
[1763361939288,1.21923739,3186.1,3185.9,0.7739807]
[1763361939492,0.50887,3186.1,3186.0,0.3859]
[1763361939694,1.46227767,3186.1,3186.0,0.3859]
[1763361940597,1.46227767,3186.1,3186.0,0.2468]
[1763361941297,0.3846,3186.0,3185.9,0.00303341]
[1763361941589,1.09570767,3186.0,3185.9,0.00303341]
[1763361941791,0.95340767,3186.0,3185.9,0.24983341]
[1763361945699,0.95340767,3186.0,3185.9,1.0207807]
[1763361945994,1.21995767,3186.2,3185.9,1.0207807]
[1763361946198,0.71110767,3186.1,3186.0,0.3859]
[1763361947300,0.75115,3186.2,3186.1,0.2468]
[1763361947496,1.46228629,3186.2,3186.1,0.2468]
[1763361948199,0.95343629,3186.2,3186.1,0.2468]
[1763361948402,0.71113629,3186.2,3186.1,1.01774729]
[1763361948601,0.50883,3186.3,3186.2,0.2345]
[1763361948902,1.21992665,3186.3,3186.2,0.2345]
[1763361950596,0.71109665,3186.3,3186.2,0.2345]
[1763361950795,0.7435,3186.5,3186.4,0.2345]
[1763361951098,0.71088387,3186.5,3186.4,0.2345]
[1763361951394,0.50876,3186.8,3186.7,0.2345]
[1763361951792,1.45442627,3186.8,3186.7,0.2345]
[1763361952695,0.74348,3186.6,3186.5,0.3732]
[1763361952897,1.45444627,3186.6,3186.5,0.3732]
[1763361953395,1.21974627,3186.6,3186.5,0.3732]
[1763361954701,0.71096627,3186.6,3186.5,0.3732]
[1763361954901,4.05252,3187.0,3186.9,0.2345]
[1763361955206,4.25488744,3187.0,3186.9,0.2345]
[1763361955394,4.76360744,3187.0,3186.9,0.2345]
[1763361956700,1.55580744,3187.0,3186.9,0.2345]
[1763361956897,0.2347,3186.6,3186.5,0.3732]
[1763361958501,0.2347,3186.6,3186.5,0.2345]
[1763361959602,0.2347,3186.6,3186.5,0.3732]
[1763361960402,0.94751543,3186.6,3186.5,0.3732]
[1763361960999,0.2347,3186.8,3186.7,0.2345]
[1763361961499,0.94752722,3186.8,3186.7,0.2345]
[1763361964610,0.71282722,3186.8,3186.7,0.2345]
[1763361964811,0.2347,3186.8,3186.7,0.2345]
[1763361965011,3.21002698,3187.2,3186.7,0.2345]
[1763361965012,0.00222698,3187.2,3187.1,0.2345]
[1763361965314,0.74326,3188.0,3187.9,0.2345]
[1763361965493,0.74326,3188.0,3187.9,1.00544729]
[1763361965694,0.94735947,3188.0,3187.9,1.00544729]
[1763361965906,0.2347,3188.0,3187.9,1.00544729]
[1763361966108,0.94971391,3188.0,3187.9,1.00544729]
[1763361966295,0.00235444,3188.0,3187.9,1.02693677]
[1763361972414,0.00470522,3188.3,3188.2,0.2345]
[1763361972613,0.00470522,3188.3,3188.2,4.21324729]
[1763361973307,0.00822877,3188.3,3188.2,4.23838161]
[1763361976913,0.54306,3188.7,3188.6,0.2346]
[1763361977113,0.54306,3188.7,3188.6,1.00554729]
[1763361977313,0.54306,3188.7,3188.6,1.02703677]
[1763361977612,0.77996,3188.7,3188.6,1.02703677]
[1763361977806,0.77996,3188.7,3188.6,0.25608948]
[1763361978117,0.78381162,3188.7,3188.6,0.25608948]
[1763361978513,0.78381162,3188.7,3188.6,1.02703677]
[1763361979112,0.00470522,3189.0,3188.9,0.2375]
[1763361979312,0.73128,3189.8,3189.7,0.2375]
[1763361979606,0.73128,3189.8,3189.7,1.02993677]
[1763361980012,0.73434283,3189.8,3189.7,0.25898948]
[1763361980318,0.73434283,3189.8,3189.7,0.02148948]
[1763361982010,1.50529012,3189.8,3189.7,0.02148948]
[1763361982805,0.73434283,3189.8,3189.7,0.02148948]
[1763361984111,0.73434283,3189.8,3189.7,0.25898948]
[1763361984508,0.73434283,3189.8,3189.7,0.02148948]
[1763361989923,1.50408415,3189.8,3189.7,0.02148948]
[1763361990323,0.87732,3189.5,3189.4,0.00470522]
[1763361990625,0.223,3188.3,3188.2,0.24114484]
[1763361991024,0.223,3188.3,3188.2,0.00364484]
[1763361992027,0.73161,3187.7,3187.6,3.2078]
[1763361992919,0.223,3187.7,3187.6,3.2078]
[1763361993120,0.1325,3188.0,3187.9,0.2375]
[1763361993121,0.00470522,3188.0,3187.9,0.2375]
[1763361993320,0.00470522,3188.0,3187.9,1.51582132]
[1763361994117,0.22770522,3188.0,3187.9,0.74608]
[1763361994419,0.00470522,3188.0,3187.9,0.74608]
[1763361994823,0.22770522,3188.0,3187.9,0.50858]
[1763361995026,0.22770522,3188.0,3187.9,1.00724132]
[1763361996028,0.00470522,3188.0,3187.9,1.00724132]
[1763361998426,0.22770522,3188.0,3187.9,1.00724132]
[1763361998728,0.22770522,3188.0,3187.9,0.2375]
[1763361999932,0.73627522,3188.0,3187.6,3.2117371]
[1763362000130,0.223,3187.7,3187.6,3.4492371]
[1763362001030,0.00470522,3188.0,3187.9,0.2375]
[1763362001220,0.00470522,3188.0,3187.9,1.00724132]
[1763362006636,0.22770522,3188.0,3187.9,1.00724132]
[1763362009935,0.73408,3187.9,3187.8,0.2393]
[1763362010135,0.2255,3187.7,3187.6,3.4510371]
[1763362011238,0.73408,3187.9,3187.8,0.2393]
[1763362011438,0.00470522,3188.0,3187.9,0.2393]
[1763362012344,3.2078,3188.5,3188.4,0.2393]
[1763362012534,3.4333,3188.5,3188.4,0.2393]
[1763362012734,3.2078,3188.5,3188.1,0.76974132]
[1763362013049,3.4333,3188.5,3188.4,0.2393]
[1763362013740,3.2078,3188.5,3188.4,1.00904132]
[1763362014739,0.2255,3188.6,3188.5,0.1398]
[1763362014946,0.2255,3188.6,3188.5,0.3791]
[1763362014947,0.73397,3188.6,3188.5,0.3791]
[1763362015244,0.23020522,3188.8,3188.7,0.2393]
[1763362015745,0.2255,3188.6,3188.5,0.3791]
[1763362018351,0.936409,3188.6,3188.5,0.3791]
[1763362019446,0.50848,3188.5,3188.1,0.76974132]
[1763362020048,0.73401,3188.4,3188.3,0.2393]
[1763362020250,1.44706431,3188.4,3188.3,0.2393]
[1763362020853,0.93855431,3188.4,3188.3,0.2393]
[1763362021150,0.50845,3188.7,3188.6,0.2393]
[1763362021449,1.44698941,3188.7,3188.6,0.2393]
[1763362021851,0.71303941,3188.7,3188.6,0.2393]
[1763362022048,0.23020522,3188.8,3188.7,0.2393]
[1763362022246,0.73396,3188.6,3188.5,0.3791]
[1763362022555,1.44697689,3188.6,3188.5,0.3791]
[1763362022850,1.44697689,3188.6,3188.5,0.2393]
[1763362023454,0.5085,3188.4,3188.1,0.76974132]
[1763362023753,0.734,3188.4,3188.3,0.2393]
[1763362023939,0.50848,3188.6,3188.1,0.76974132]
[1763362024145,0.73398,3188.6,3188.5,0.3791]
[1763362024349,1.44710738,3188.6,3188.5,0.3791]
[1763362025253,1.44709558,3188.6,3188.5,0.3791]
[1763362033052,0.71311558,3188.6,3188.5,0.3791]
[1763362033253,0.00470522,3188.8,3188.7,0.2393]
[1763362033456,0.00470522,3188.8,3188.7,1.00904132]
[1763362033658,3.2078,3189.4,3189.3,0.2393]
[1763362033854,3.92103961,3189.4,3189.3,1.00904132]
[1763362034358,0.71323961,3189.4,3189.3,1.00904132]
[1763362037554,1.45048421,3189.7,3189.6,0.2393]
[1763362039851,0.94219421,3189.7,3189.6,0.2393]
[1763362040354,0.71669421,3189.7,3189.6,0.2393]
[1763362040757,0.94159421,3189.7,3189.6,0.2393]
[1763362040952,0.00470522,3189.7,3189.6,0.2393]
[1763362044153,0.00470522,3189.7,3189.6,1.00904132]
[1763362044357,0.00470522,3189.7,3189.6,0.2393]
[1763362044855,0.00470522,3189.7,3189.6,1.00879529]
[1763362047155,0.22960522,3189.7,3189.6,0.2369]
[1763362049455,0.2249,3189.5,3189.4,3.4447]
[1763362050455,0.2249,3189.5,3189.4,3.2078]
[1763362050759,0.3645,3189.5,3189.4,3.2078]
[1763362052261,0.2249,3189.2,3189.1,0.76949529]
[1763362052561,0.2249,3189.1,3189.0,3.35230522]
[1763362053059,0.2249,3189.1,3189.0,0.14450522]
[1763362053457,0.2249,3189.1,3189.0,0.38140522]
[1763362055760,0.73326,3189.3,3189.2,0.2369]
[1763362055964,0.2249,3189.3,3189.2,0.2369]
[1763362057253,0.00470522,3189.7,3189.6,0.2369]
[1763362057457,0.714805,3189.7,3189.6,1.00639529]
[1763362057758,0.939705,3189.7,3189.6,1.00639529]
[1763362058753,0.939705,3189.7,3189.6,0.2369]
[1763362061162,0.22960522,3189.7,3189.6,0.2369]
[1763362061551,0.94038013,3189.7,3189.6,1.00639529]
[1763362062156,0.71548013,3189.7,3189.6,1.00639529]
[1763362062560,0.71548013,3189.7,3189.6,4.98369058]
[1763362062866,0.00470522,3189.7,3189.6,4.98369058]
[1763362064060,0.71155504,3190.2,3190.1,0.2369]
[1763362064264,0.2249,3190.9,3190.8,0.2369]
[1763362064455,0.2249,3190.9,3190.6,3.2078]
[1763362064656,0.2249,3190.7,3190.6,3.4447]
[1763362065063,0.00237668,3190.7,3190.6,3.44822394]
[1763362065563,0.22727668,3190.7,3190.6,3.44822394]
[1763362066162,0.22727668,3190.7,3190.6,0.00352394]
[1763362066662,6.22727668,3190.7,3190.6,2.394e-05]
[1763362066869,0.2249,3189.8,3189.7,3.4447]
[1763362067358,0.2249,3189.5,3189.4,0.76949529]
[1763362067669,0.2249,3189.4,3189.3,3.4447]
[1763362068060,0.2249,3189.4,3189.3,3.44829002]
[1763362069562,0.7332,3189.7,3189.6,0.2369]
[1763362070063,0.2347,3189.6,3189.5,1.15579529]
[1763362071362,0.2347,3189.6,3189.5,0.76949529]
[1763362072368,0.74296,3189.9,3189.8,0.2408]
[1763362072867,0.74299,3189.7,3189.6,0.2408]
[1763362074268,0.2347,3189.6,3189.5,0.91499529]
[1763362074472,0.2347,3189.4,3189.3,4.22168531]
[1763362075870,0.74302,3189.6,3189.5,0.2408]
[1763362076071,0.74302,3189.6,3189.5,1.01029529]
[1763362076666,0.74302,3189.6,3189.5,1.15579529]
[1763362077066,0.74298,3189.8,3189.7,0.2408]
[1763362077361,0.94272989,3189.8,3189.7,1.01029529]
[1763362078769,0.2347,3189.6,3189.5,0.76949529]
[1763362078971,0.74301,3189.6,3189.5,0.2408]
[1763362079170,0.74301,3189.6,3189.5,1.15579529]
[1763362079985,0.2347,3189.6,3189.5,1.15579529]
[1763362080570,0.50829,3189.7,3189.6,0.2408]
[1763362081082,0.74299,3189.7,3189.6,0.2408]
[1763362084278,0.2347,3189.7,3189.6,0.2408]
[1763362084471,0.70504026,3189.8,3189.7,0.2408]
[1763362084670,0.70504026,3189.8,3189.7,1.01029529]
[1763362085676,0.76949529,3190.4,3189.7,1.01029529]
[1763362085677,0.50823,3190.1,3190.0,0.3863]
[1763362085878,0.50823,3190.1,3190.0,1.15579529]
[1763362086377,1.21322944,3190.1,3190.0,1.15579529]
[1763362086771,0.70499944,3190.1,3190.0,1.15579529]
[1763362086973,1.44788944,3190.4,3190.0,0.91499529]
[1763362087172,1.21319944,3190.3,3190.2,1.01029529]
[1763362087473,1.44789944,3190.3,3190.2,1.01029529]
[1763362087680,1.44789944,3190.3,3190.2,0.2408]
[1763362090477,0.74292,3190.1,3190.0,1.15579529]
[1763362090880,1.44791944,3190.1,3190.0,1.15579529]
[1763362091378,0.2347,3189.9,3189.8,1.01029529]
[1763362092875,0.50819,3190.4,3190.0,0.1455]
[1763362093081,0.74289,3190.4,3190.3,0.2408]
[1763362093277,1.44777507,3190.4,3190.3,0.2408]
[1763362093886,0.2347,3190.3,3190.2,1.01029529]
[1763362094181,0.2347,3190.1,3190.0,1.15579529]
[1763362094569,0.93958507,3190.1,3190.0,1.15579529]
[1763362095281,0.93958507,3190.1,3189.9,0.2408]
[1763362095282,0.74294,3190.0,3189.9,0.2408]
[1763362095582,1.44782507,3190.0,3189.9,0.2408]
[1763362096878,0.2347,3189.8,3189.7,4.21809529]
[1763362097083,0.2347,3189.8,3189.7,3.2078]
[1763362097386,0.93958507,3189.8,3189.7,3.2078]
[1763362098191,0.50826,3189.9,3189.7,4.22289529]
[1763362098391,0.50826,3189.9,3189.8,0.2456]
[1763362098887,1.21413939,3189.9,3189.8,0.2456]
[1763362099290,0.93237939,3189.9,3189.8,0.2456]
[1763362099587,0.50824,3190.1,3190.0,0.3751]
[1763362099588,0.73404,3190.1,3190.0,0.3751]
[1763362099790,0.50824,3190.1,3190.0,1.14459529]
[1763362099991,1.2141304,3190.1,3190.0,1.14459529]
[1763362100183,1.4399304,3190.1,3190.0,1.14459529]
[1763362100680,0.2258,3189.8,3189.7,3.4421]
[1763362100883,0.93170913,3189.8,3189.7,4.21159529]
[1763362102591,0.2258,3189.5,3189.4,0.2343]
[1763362102791,0.2258,3189.5,3189.4,1.00379529]
[1763362104089,0.70590913,3189.7,3189.5,0.1408]
[1763362104278,0.70590913,3189.7,3189.6,1.77329058]
[1763362104476,0.70590913,3189.7,3189.6,1.00379529]
[1763362106184,9.13e-06,3189.7,3189.6,1.00379529]
[1763362106381,3.2078,3190.0,3189.6,1.00379529]
[1763362106382,0.3657,3190.0,3189.9,0.2343]
[1763362106788,0.2258,3189.9,3189.8,3.2078]
[1763362108389,0.3657,3189.5,3189.4,5.10443824]
[1763362109090,0.2258,3189.4,3189.3,0.00359002]
[1763362111682,0.3657,3189.5,3189.4,0.2343]
[1763362112484,0.2258,3189.4,3189.3,0.77309742]
[1763362112690,0.73414,3189.4,3189.3,0.00359002]
[1763362114491,0.2258,3189.4,3189.3,0.23789002]
[1763362120303,0.2258,3189.4,3189.3,0.00359002]
[1763362130612,0.2258,3189.4,3189.3,0.24789002]
[1763362130910,0.64823,3189.5,3189.4,0.2443]
[1763362131509,0.1399,3189.5,3189.4,0.2443]
[1763362131908,0.1399,3189.5,3189.4,1.0138074]
[1763362133720,3.2078,3189.7,3189.6,0.2443]
[1763362135921,3.4436,3189.7,3189.6,0.2443]
[1763362136119,0.74406,3189.9,3189.8,0.2443]
[1763362136321,0.2358,3189.9,3189.8,0.2443]
[1763362137321,3.2078,3190.2,3190.1,0.2443]
[1763362137523,3.4436,3190.2,3190.1,0.2443]
[1763362138421,0.1437,3190.0,3189.9,1.0138074]
[1763362138616,0.3795,3190.0,3189.9,1.0138074]
[1763362139018,0.2358,3189.8,3189.7,1.12713084]
[1763362139218,0.3795,3189.5,3189.4,3.4521]
[1763362143222,0.88774,3190.0,3189.4,3.2078]
[1763362143427,0.88774,3190.0,3189.4,4.33493084]
[1763362143626,0.88774,3190.0,3189.5,0.7695074]
[1763362144129,0.3795,3189.5,3189.4,3.2078]
[1763362144528,0.3795,3189.5,3189.4,3.4521]
[1763362145628,0.74414,3189.4,3189.3,0.00359002]
[1763362146021,0.74417,3189.2,3189.1,0.00470522]
[1763362147132,0.74417,3189.2,3189.1,0.00729003]
[1763362150028,0.2358,3189.2,3189.1,0.00729003]
[1763362150331,0.3795,3189.5,3189.4,0.2443]
[1763362150630,0.3795,3189.5,3189.4,1.0138074]
[1763362151330,0.1437,3189.5,3189.4,1.0138074]
[1763362152438,0.3795,3189.5,3189.4,1.0138074]
[1763362152836,3.5873,3190.0,3189.4,0.7695074]
[1763362153032,0.50826,3189.9,3189.4,0.7695074]
[1763362153337,0.3795,3189.5,3189.1,5.11172827]
[1763362153537,0.2358,3189.2,3189.1,0.00729003]
[1763362156044,0.2358,3189.2,3189.1,0.25159003]
[1763362156442,0.2358,3189.2,3189.1,0.00729003]
[1763362164747,0.2358,3189.2,3189.1,0.24129003]
[1763362164951,0.2358,3189.2,3189.1,0.00729003]
[1763362168744,1.27837134,3189.3,3188.6,3.2078]
[1763362168745,0.2267,3188.7,3188.6,3.2078]
[1763362169849,0.2267,3188.7,3188.6,3.21144111]
[1763362170155,0.2267,3188.7,3188.6,3.44544111]
[1763362171051,0.70575964,3188.9,3188.6,3.44544111]
[1763362171254,0.93245964,3188.9,3188.8,1.00401134]
[1763362171944,0.2267,3188.7,3188.6,3.98145245]
[1763362172240,0.2267,3188.7,3188.6,3.21144111]
[1763362172440,0.2267,3188.7,3188.6,0.00364111]
[1763362173353,0.93250044,3188.7,3188.6,0.00364111]
[1763362173652,0.93250044,3188.7,3188.6,1.00765245]
[1763362173851,0.2267,3188.7,3188.6,1.00765245]
[1763362174152,0.93250044,3188.9,3188.8,0.234]
[1763362174348,0.93250044,3188.9,3188.8,1.00401134]
[1763362175353,0.2267,3188.7,3188.6,0.77365245]
[1763362175749,0.2267,3188.7,3188.6,0.00364111]
[1763362176148,0.93250044,3188.7,3188.6,0.00364111]
[1763362176654,0.70580044,3188.7,3188.6,1.00765245]
[1763362176954,0.93272276,3188.9,3188.8,0.234]
[1763362177154,0.93272276,3188.9,3188.6,0.77365245]
[1763362177155,0.2267,3188.7,3188.6,1.00765245]
[1763362179056,0.70602276,3188.8,3188.7,0.234]
[1763362179252,3.57690522,3189.0,3188.6,0.77365245]
[1763362179457,0.70587846,3188.9,3188.6,0.77365245]
[1763362180248,3.35020522,3189.0,3188.9,0.234]
[1763362180454,4.05604107,3189.0,3188.9,0.234]
[1763362180853,4.28274107,3189.0,3188.9,0.234]
[1763362183062,1.07494107,3189.0,3188.9,0.234]
[1763362183358,0.36910522,3189.0,3188.9,0.234]
[1763362183653,1.07494107,3189.0,3188.9,0.234]
[1763362185862,0.2267,3188.9,3188.8,1.00401134]
[1763362186661,0.2267,3188.9,3188.8,0.77001134]
[1763362186862,0.93253585,3188.9,3188.8,0.77001134]
[1763362187160,0.2267,3188.9,3188.8,0.77001134]
[1763362188158,0.2267,3188.7,3188.6,0.00364111]
[1763362190861,0.2267,3188.7,3188.6,0.23444111]
[1763362192164,0.93303585,3188.8,3188.7,0.2308]
[1763362192463,0.2272,3188.8,3188.7,1.00081134]
[1763362198971,0.70657266,3188.9,3188.8,0.2308]
[1763362199370,0.93377266,3188.9,3188.8,0.2308]
[1763362200271,0.2272,3188.7,3188.6,0.00364111]
[1763362200572,0.2272,3188.7,3188.6,0.77365245]
[1763362200773,0.2272,3188.7,3188.6,0.00364111]
[1763362201071,1.703784,3188.7,3188.6,0.00364111]
[1763362201273,4.911584,3188.7,3188.6,4.111e-05]
[1763362202176,4.14157266,3188.7,3188.6,4.111e-05]